bitfinex/quotes_BTCUSD_20230403
["timestamp","ask_amount","ask_price","bid_price","bid_amount"]
[1680524796502,0.80579049,28155.0,28154.0,0.0166]
[1680524796728,1.20374746,28155.0,28154.0,0.00931615]
[1680524796953,1.20374746,28155.0,28150.0,2.01206379]
[1680524796954,0.69989249,28152.0,28150.0,2.01206379]
[1680524797196,0.69989249,28152.0,28150.0,2.01188379]
[1680524797197,0.022971,28151.0,28150.0,2.01188379]
[1680524797427,0.107351,28151.0,28150.0,2.01188379]
[1680524797660,0.191371,28151.0,28150.0,2.01188379]
[1680524797885,0.207536,28151.0,28150.0,2.01188379]
[1680524798343,0.207356,28151.0,28150.0,2.01206379]
[1680524798578,0.234356,28151.0,28150.0,2.01206379]
[1680524798799,0.207356,28151.0,28150.0,2.01206379]
[1680524799025,0.049971,28151.0,28150.0,2.01206379]
[1680524799249,0.022971,28151.0,28150.0,2.01206379]
[1680524799470,0.049971,28151.0,28150.0,2.01206379]
[1680524799853,0.049971,28151.0,28150.0,2.36703876]
[1680524800351,0.049971,28151.0,28150.0,2.3685753]
[1680524800626,0.049971,28151.0,28150.0,2.01360033]
[1680524800894,0.022971,28151.0,28150.0,2.01360033]
[1680524801204,0.049971,28151.0,28150.0,2.3685753]
[1680524801487,0.049971,28151.0,28150.0,2.01360033]
[1680524801762,0.038956,28151.0,28150.0,2.01360033]
[1680524802043,0.065956,28151.0,28150.0,2.01360033]
[1680524802335,0.123156,28151.0,28150.0,2.01360033]
[1680524802607,0.150156,28151.0,28150.0,2.01360033]
[1680524802883,0.123156,28151.0,28150.0,2.01360033]
[1680524803431,0.206756,28151.0,28150.0,2.01342033]
[1680524803915,0.233756,28151.0,28150.0,2.01360033]
[1680524804453,0.206756,28151.0,28150.0,2.01360033]
[1680524804697,0.233756,28151.0,28150.0,2.01360033]
[1680524804921,0.233756,28151.0,28150.0,2.01342033]
[1680524805467,0.149556,28151.0,28150.0,2.01342033]
[1680524805730,0.233056,28151.0,28150.0,2.01342033]
[1680524805999,0.149736,28151.0,28150.0,2.01342033]
[1680524806581,0.149556,28151.0,28150.0,2.01342033]
[1680524809226,0.349556,28151.0,28150.0,2.01342033]
[1680524809503,0.250151,28151.0,28150.0,2.01342033]
[1680524810046,0.266136,28151.0,28150.0,2.01342033]
[1680524811315,0.250151,28151.0,28150.0,2.01342033]
[1680524813556,0.72689249,28151.0,28150.0,2.7419753]
[1680524813860,0.72689249,28151.0,28150.0,2.7597363]
[1680524814138,0.69989249,28151.0,28150.0,2.8901383]
[1680524814489,0.69989249,28151.0,28150.0,2.8524363]
[1680524814872,0.72289249,28151.0,28150.0,2.8524363]
[1680524815094,0.023,28151.0,28150.0,2.8896043]
[1680524815322,0.02284635,28151.0,28150.0,2.4057433]
[1680524815579,0.021759,28152.0,28150.0,2.01342033]
[1680524815797,0.74400493,28153.0,28150.0,2.01342033]
[1680524815798,0.036649,28151.0,28150.0,2.01342033]
[1680524816022,0.021628,28152.0,28150.0,2.01342033]
[1680524816244,0.045132,28151.0,28150.0,2.01342033]
[1680524816470,0.021971,28152.0,28150.0,2.01342033]
[1680524816687,0.021636,28151.0,28150.0,2.01342033]
[1680524817135,0.022,28151.0,28150.0,2.00342033]
[1680524817358,0.042715,28151.0,28150.0,2.00342033]
[1680524817587,0.021629,28152.0,28150.0,2.3583953]
[1680524817807,0.72802093,28153.0,28150.0,2.3583953]
[1680524818487,0.044021,28151.0,28150.0,2.00342033]
[1680524818731,0.122386,28151.0,28150.0,2.00342033]
[1680524819651,0.47736097,28151.0,28150.0,2.00342033]
[1680524819870,0.58856097,28151.0,28150.0,2.00342033]
[1680524821186,0.56156097,28151.0,28150.0,2.00342033]
[1680524821436,2.06737179,28151.0,28150.0,2.00342033]
[1680524821985,1.98317179,28151.0,28150.0,2.00342033]
[1680524822192,2.03367179,28151.0,28150.0,2.00342033]
[1680524823429,1.67869682,28151.0,28150.0,2.00342033]
[1680524823664,1.34399682,28151.0,28150.0,2.00342033]
[1680524823887,1.32801182,28151.0,28150.0,2.00342033]
[1680524824121,0.065186,28151.0,28150.0,2.00342033]
[1680524824569,0.038186,28151.0,28150.0,2.00342033]
[1680524824789,0.065186,28151.0,28150.0,2.00342033]
[1680524825266,0.55486097,28151.0,28150.0,2.00342033]
[1680524825502,0.61880097,28151.0,28150.0,2.00342033]
[1680524825728,1.87057758,28151.0,28150.0,2.00342033]
[1680524825994,1.89757758,28151.0,28150.0,2.00342033]
[1680524827053,1.89757758,28151.0,28150.0,1.55584117]
[1680524827505,1.87057758,28151.0,28150.0,1.55584117]
[1680524827507,1.89757758,28151.0,28150.0,1.55584117]
[1680524827795,1.87057758,28151.0,28150.0,1.55584117]
[1680524828673,2.48147376,28151.0,28150.0,1.55584117]
[1680524828948,2.53192185,28151.0,28150.0,1.55584117]
[1680524829217,2.90532185,28151.0,28150.0,1.55430463]
[1680524829496,3.07335884,28151.0,28150.0,1.55430463]
[1680524830006,2.90532185,28151.0,28150.0,1.55430463]
[1680524830008,3.36716761,28151.0,28150.0,1.55430463]
[1680524830290,3.72237585,28151.0,28150.0,1.55430463]
[1680524830574,3.34016761,28151.0,28150.0,1.55430463]
[1680524830851,3.36716761,28151.0,28150.0,1.55430463]
[1680524831351,3.34016761,28151.0,28150.0,0.99476375]
[1680524831352,3.36716761,28151.0,28150.0,0.99476375]
[1680524831635,3.86589585,28151.0,28150.0,0.99476375]
[1680524831925,3.7643863,28151.0,28150.0,0.99476375]
[1680524832195,3.9079063,28151.0,28150.0,0.99476375]
[1680524832512,3.7373863,28151.0,28150.0,0.99476375]
[1680524832780,3.9079063,28151.0,28150.0,0.99476375]
[1680524833054,3.02727806,28151.0,28150.0,0.99476375]
[1680524833335,1.32779761,28151.0,28150.0,1.13691862]
[1680524833604,1.32779761,28151.0,28150.0,0.99494375]
[1680524834101,1.30079761,28151.0,28150.0,0.99494375]
[1680524834104,0.049021,28151.0,28150.0,0.99494375]
[1680524834393,0.022021,28151.0,28150.0,0.99651156]
[1680524834690,0.049021,28151.0,28150.0,0.99651156]
[1680524835194,0.022021,28151.0,28150.0,0.99651156]
[1680524836104,0.049021,28151.0,28150.0,0.99651156]
[1680524836340,0.022021,28151.0,28150.0,0.99651156]
[1680524836563,0.049021,28151.0,28150.0,0.99651156]
[1680524842008,0.059021,28151.0,28150.0,0.99651156]
[1680524842147,0.075006,28151.0,28150.0,0.99651156]
[1680524842375,0.64251286,28151.0,28150.0,0.99651156]
[1680524842577,1.14599648,28151.0,28150.0,0.99651156]
[1680524842778,0.59776602,28151.0,28150.0,0.99651156]
[1680524842985,1.01735327,28151.0,28150.0,0.99651156]
[1680524843187,0.99035327,28151.0,28150.0,0.99651156]
[1680524843384,1.01735327,28151.0,28150.0,0.99651156]
[1680524843946,0.57076602,28151.0,28150.0,0.99651156]
[1680524844186,0.72409858,28151.0,28150.0,0.99651156]
[1680524845553,0.20133856,28151.0,28150.0,0.99651156]
[1680524845993,0.15922207,28151.0,28150.0,0.99651156]
[1680524846898,0.13222207,28151.0,28150.0,0.99651156]
[1680524847112,0.15922207,28151.0,28150.0,0.99651156]
[1680524847995,0.075006,28151.0,28150.0,0.99651156]
[1680524848110,0.15922207,28151.0,28150.0,0.99651156]
[1680524848340,0.075006,28151.0,28150.0,0.99651156]
[1680524848562,0.059021,28151.0,28150.0,0.99651156]
[1680524849007,0.059021,28151.0,28150.0,1.36924753]
[1680524849008,0.037,28151.0,28150.0,1.36924753]
[1680524849234,0.037,28151.0,28150.0,1.35148653]
[1680524849680,0.01,28151.0,28150.0,1.36924753]
[1680524849897,0.037,28151.0,28150.0,1.50148653]
[1680524850112,0.037,28151.0,28150.0,1.35148653]
[1680524850343,0.031056,28151.0,28150.0,0.99651156]
[1680524850566,0.058056,28151.0,28150.0,0.99651156]
[1680524851671,0.031056,28151.0,28150.0,0.99651156]
[1680524851925,0.058056,28151.0,28150.0,0.99651156]
[1680524852151,0.047041,28151.0,28150.0,0.99651156]
[1680524852390,0.137981,28151.0,28150.0,0.99651156]
[1680524852611,0.047041,28151.0,28150.0,0.99651156]
[1680524852846,0.058056,28151.0,28150.0,0.99651156]
[1680524853085,0.031056,28151.0,28150.0,0.99651156]
[1680524853316,0.074041,28151.0,28150.0,0.99651156]
[1680524853949,0.57901597,28151.0,28150.0,0.99651156]
[1680524854164,0.70534853,28151.0,28150.0,0.99651156]
[1680524854588,0.67834853,28151.0,28150.0,0.99494375]
[1680524854803,0.63957538,28151.0,28150.0,0.99494375]
[1680524855019,0.90174853,28151.0,28150.0,0.99494375]
[1680524855231,2.22199306,28151.0,28150.0,0.99494375]
[1680524855445,2.37533859,28151.0,28150.0,0.99494375]
[1680524855664,2.34833859,28151.0,28150.0,0.99494375]
[1680524855897,2.37533859,28151.0,28150.0,0.99494375]
[1680524856100,2.34833859,28151.0,28150.0,0.99494375]
[1680524856312,2.72419714,28151.0,28150.0,0.99494375]
[1680524856533,3.08611187,28151.0,28150.0,0.99464597]
[1680524856737,2.65535332,28151.0,28150.0,0.99464597]
[1680524856982,2.6376543,28151.0,28150.0,0.99464597]
[1680524857220,3.18711686,28151.0,28150.0,0.99464597]
[1680524857463,2.64530588,28151.0,28150.0,0.99464597]
[1680524857723,2.60910686,28151.0,28150.0,0.99464597]
[1680524857958,2.63610686,28151.0,28150.0,0.99464597]
[1680524858179,2.60910686,28151.0,28150.0,0.99464597]
[1680524858402,3.22006068,28151.0,28150.0,0.99464597]
[1680524858622,2.98250686,28151.0,28150.0,0.99464597]
[1680524858840,3.2200478,28151.0,28150.0,0.99464597]
[1680524859063,3.00950686,28151.0,28150.0,0.99464597]
[1680524860388,2.98250686,28151.0,28150.0,0.99464597]
[1680524860609,3.70163249,28151.0,28150.0,0.99464597]
[1680524860827,3.84515249,28151.0,28150.0,0.99464597]
[1680524861056,3.70163249,28151.0,28150.0,0.99464597]
[1680524861494,3.67463249,28151.0,28150.0,0.99464597]
[1680524861706,3.70163249,28151.0,28150.0,0.99464597]
[1680524861928,3.67463249,28151.0,28150.0,0.99464597]
[1680524862140,3.61870588,28151.0,28150.0,0.99464597]
[1680524862381,3.59170588,28151.0,28150.0,0.54703128]
[1680524862814,3.84409152,28151.0,28150.0,0.54703128]
[1680524863021,3.59170588,28151.0,28150.0,0.54703128]
[1680524863448,3.61870588,28151.0,28150.0,0.54703128]
[1680524863675,3.59170588,28151.0,28150.0,0.54703128]
[1680524863909,3.61870588,28151.0,28150.0,0.54703128]
[1680524864116,3.59170588,28151.0,28150.0,0.54703128]
[1680524864344,3.61870588,28151.0,28150.0,0.54703128]
[1680524864548,3.59170588,28151.0,28150.0,0.54703128]
[1680524864804,3.61870588,28151.0,28150.0,0.54703128]
[1680524865031,3.59170588,28151.0,28150.0,0.54703128]
[1680524865244,3.60100686,28151.0,28150.0,0.54703128]
[1680524865453,3.60100686,28151.0,28150.0,0.12388519]
[1680524865677,3.60100686,28151.0,28144.0,0.013002]
[1680524865678,0.69989249,28145.0,28144.0,0.013002]
[1680524865889,0.69989249,28145.0,28143.0,0.02159964]
[1680524865890,0.7081,28144.0,28143.0,0.02159964]
[1680524866117,2.18808586,28144.0,28143.0,0.02159964]
[1680524866343,0.49723987,28144.0,28143.0,0.02159964]
[1680524866566,0.58142433,28144.0,28143.0,0.02159964]
[1680524866776,0.80118883,28144.0,28143.0,0.02159964]
[1680524866993,2.71859227,28144.0,28143.0,0.02159964]
[1680524867206,3.04729325,28144.0,28143.0,0.02159964]
[1680524867424,3.11924777,28144.0,28143.0,0.02159964]
[1680524867651,0.80030763,28144.0,28143.0,0.02159964]
[1680524867873,0.22376791,28144.0,28143.0,0.02159964]
[1680524868092,0.13869015,28144.0,28143.0,0.02159964]
[1680524868550,0.92634365,28145.0,28143.0,0.02159964]
[1680524868757,0.015989,28144.0,28143.0,0.02159964]
[1680524868980,1.70974338,28144.0,28143.0,0.02159964]
[1680524869198,3.72408895,28144.0,28143.0,0.02159964]
[1680524869421,0.83762138,28137.0,28121.0,0.1342]
[1680524869641,0.83762138,28137.0,28126.0,0.017776]
[1680524869642,0.48967497,28136.0,28126.0,0.017776]
[1680524869866,0.48967497,28136.0,28124.0,0.371176]
[1680524869867,0.48985497,28136.0,28124.0,0.371176]
[1680524870087,0.015995,28134.0,28125.0,0.37275197]
[1680524870308,0.35497497,28133.0,28124.0,0.017778]
[1680524870532,0.00018,28133.0,28127.0,0.15]
[1680524870752,0.016175,28133.0,28127.0,0.35497497]
[1680524870971,0.00018,28133.0,28132.0,0.35497497]
[1680524871229,0.08407098,28139.0,28127.0,0.2126]
[1680524871230,0.00018,28139.0,28133.0,0.15]
[1680524871452,0.015991,28141.0,28132.0,0.017772]
[1680524871693,0.015991,28141.0,28129.0,0.13408]
[1680524871694,0.35497497,28140.0,28133.0,0.14197487]
[1680524872142,0.37096597,28140.0,28133.0,0.14197487]
[1680524872363,0.83780138,28141.0,28133.0,0.14197487]
[1680524872629,0.015991,28140.0,28133.0,0.14197487]
[1680524873083,0.35497497,28139.0,28132.0,0.00018]
[1680524873308,0.516391,28140.0,28132.0,0.49694984]
[1680524873309,0.016171,28140.0,28132.0,0.49694984]
[1680524873532,0.1344,28134.0,28131.0,0.00018]
[1680524873773,0.1344,28134.0,28128.0,0.3757]
[1680524873774,0.1344,28134.0,28129.0,6e-05]
[1680524874002,0.015994,28135.0,28129.0,0.35497497]
[1680524874213,0.015995,28134.0,28128.0,0.00018]
[1680524874451,0.37096897,28135.0,28126.0,0.039476]
[1680524874663,0.37096897,28135.0,28126.0,0.53642584]
[1680524874886,0.37096897,28135.0,28126.0,0.53660584]
[1680524875090,0.35497497,28134.0,28126.0,0.16385487]
[1680524875319,0.35497497,28134.0,28126.0,0.16367487]
[1680524875532,0.015995,28133.0,28126.0,0.16367487]
[1680524875975,0.015995,28133.0,28126.0,0.16385487]
[1680524876184,0.015995,28133.0,28127.0,0.02518296]
[1680524876398,0.015995,28133.0,28127.0,0.16715783]
[1680524876620,0.015995,28133.0,28127.0,0.02518296]
[1680524876621,0.35497497,28133.0,28127.0,0.02518296]
[1680524876839,0.15239902,28132.0,28127.0,0.02518296]
[1680524877052,0.015996,28131.0,28127.0,0.02518296]
[1680524878186,0.6344,28128.0,28127.0,0.02518296]
[1680524878405,0.97202138,28128.0,28127.0,0.02518296]
[1680524878616,0.88561538,28128.0,28127.0,0.02518296]
[1680524878831,0.00018,28132.0,28127.0,0.92739938]
[1680524879088,0.00018,28134.0,28131.0,0.134]
[1680524879318,0.05218708,28135.0,28132.0,0.87034984]
[1680524879532,0.85361338,28138.0,28132.0,0.87034984]
[1680524879749,0.85361338,28138.0,28133.0,0.51537487]
[1680524879750,0.83780138,28138.0,28133.0,0.51537487]
[1680524879966,0.85379338,28138.0,28133.0,0.14197487]
[1680524880177,0.85379338,28138.0,28133.0,0.1665892]
[1680524880388,0.94219112,28138.0,28133.0,0.1665892]
[1680524880617,1.20876835,28138.0,28133.0,0.02461433]
[1680524880826,1.20858835,28138.0,28133.0,0.02461433]
[1680524881042,1.20858835,28138.0,28128.0,0.13488]
[1680524881256,1.20858835,28138.0,28129.0,0.14197487]
[1680524881469,1.23558835,28138.0,28129.0,0.14215487]
[1680524881686,1.20858835,28138.0,28129.0,0.44215487]
[1680524881899,0.88061338,28138.0,28130.0,0.35497497]
[1680524882114,0.85361338,28138.0,28131.0,0.14197487]
[1680524882334,0.88061338,28138.0,28131.0,0.14197487]
[1680524882545,0.88079338,28138.0,28131.0,0.14197487]
[1680524882770,0.85379338,28138.0,28131.0,0.14197487]
[1680524883000,0.88079338,28138.0,28131.0,0.14197487]
[1680524883253,0.88079338,28138.0,28130.0,0.398278]
[1680524883254,0.1342,28132.0,28127.0,0.00018]
[1680524883478,1.17142138,28128.0,28126.0,0.0217]
[1680524883700,0.3,28127.0,28126.0,0.0217]
[1680524883939,0.00018,28129.0,28126.0,0.35497497]
[1680524884155,0.0527072,28131.0,28127.0,0.0354975]
[1680524884156,0.83762138,28128.0,28127.0,0.0354975]
[1680524884610,0.83762138,28128.0,28127.0,0.00018]
[1680524884611,0.85361938,28128.0,28127.0,0.00018]
[1680524884839,0.85361938,28128.0,28126.0,0.00131226]
[1680524885054,0.88061938,28128.0,28126.0,0.00131226]
[1680524885493,0.85361938,28128.0,28126.0,0.00131226]
[1680524885714,0.88061938,28128.0,28123.0,0.00018]
[1680524885934,0.85361938,28128.0,28124.0,0.35497497]
[1680524886163,0.88061938,28128.0,28127.0,0.02047267]
[1680524887105,0.85361938,28128.0,28124.0,0.00164176]
[1680524887328,0.88061938,28128.0,28124.0,0.00164176]
[1680524887554,0.021293,28127.0,28122.0,0.00018]
[1680524887774,0.015999,28126.0,28123.0,0.013468]
[1680524887981,0.015999,28126.0,28123.0,0.013648]
[1680524887982,0.021716,28125.0,28123.0,0.013648]
[1680524888212,0.021716,28125.0,28123.0,0.03418351]
[1680524888213,0.022409,28124.0,28123.0,0.03418351]
[1680524888652,0.016,28124.0,28123.0,0.03418351]
[1680524888886,0.016,28124.0,28123.0,0.02071551]
[1680524889116,0.03858,28124.0,28123.0,0.02053551]
[1680524889991,0.03858,28124.0,28123.0,0.37551048]
[1680524889992,0.04958,28124.0,28123.0,0.37551048]
[1680524890205,0.02258,28124.0,28123.0,0.35515497]
[1680524890416,0.04958,28124.0,28123.0,0.35515497]
[1680524890672,0.04958,28124.0,28123.0,0.39067047]
[1680524890673,0.03858,28124.0,28123.0,0.39067047]
[1680524890898,0.027,28124.0,28123.0,0.39067047]
[1680524891114,0.063408,28124.0,28123.0,0.00018]
[1680524891331,0.036408,28124.0,28121.0,0.00018]
[1680524891539,0.021615,28123.0,28121.0,0.00018]
[1680524891773,0.020652,28122.0,28121.0,0.00018]
[1680524892234,0.020319,28123.0,28121.0,0.00018]
[1680524892449,0.037402,28124.0,28121.0,0.00018]
[1680524892673,0.020755,28123.0,28121.0,0.00018]
[1680524893132,0.047755,28123.0,28121.0,0.00018]
[1680524893316,0.022276,28122.0,28121.0,0.00018]
[1680524893745,0.020866,28122.0,28121.0,0.00018]
[1680524893959,0.021405,28124.0,28121.0,0.00018]
[1680524894180,0.027,28122.0,28121.0,0.00018]
[1680524894405,0.027,28122.0,28121.0,0.35515497]
[1680524894612,0.027,28122.0,28121.0,0.80969547]
[1680524894848,0.027,28122.0,28121.0,1.71515728]
[1680524895309,0.00012,28127.0,28123.0,0.3734]
[1680524895523,0.83762138,28129.0,28127.0,0.3734]
[1680524895524,0.00018,28128.0,28127.0,0.3734]
[1680524895753,0.00018,28128.0,28127.0,0.92477384]
[1680524895974,0.00018,28129.0,28128.0,0.03836]
[1680524896195,0.00018,28129.0,28128.0,0.73687497]
[1680524897049,0.00618,28129.0,28128.0,0.35697497]
[1680524897912,0.02898,28129.0,28128.0,0.002]
[1680524898159,0.0288,28129.0,28128.0,0.002]
[1680524898349,0.00618,28129.0,28128.0,0.002]
[1680524898570,0.027366,28129.0,28128.0,0.002]
[1680524898778,0.00618,28129.0,28128.0,0.35697497]
[1680524899624,0.00618,28129.0,28128.0,0.73037497]
[1680524899828,0.00618,28129.0,28128.0,0.83461747]
[1680524900049,0.006,28129.0,28128.0,0.87972347]
[1680524901111,0.006,28129.0,28128.0,1.01442347]
[1680524901335,0.006,28129.0,28128.0,1.34391792]
[1680524901542,0.006,28129.0,28128.0,1.34385792]
[1680524902228,0.00018,28133.0,28128.0,1.00442347]
[1680524902445,0.00018,28133.0,28132.0,0.3734]
[1680524902692,0.00018,28133.0,28132.0,0.72837497]
[1680524903123,0.83780138,28134.0,28132.0,0.72337497]
[1680524903405,0.83780138,28134.0,28133.0,0.72337497]
[1680524903631,0.00018,28134.0,28133.0,0.88364697]
[1680524903842,0.00018,28136.0,28135.0,0.3684]
[1680524904063,0.00018,28136.0,28135.0,0.74964597]
[1680524904274,0.83762138,28137.0,28135.0,0.74964597]
[1680524904275,0.83780138,28137.0,28135.0,0.74964597]
[1680524904484,0.83780138,28137.0,28136.0,0.72337497]
[1680524904936,0.83780138,28137.0,28136.0,0.74114497]
[1680524905131,0.83780138,28137.0,28136.0,0.80204555]
[1680524905344,0.84780138,28137.0,28136.0,0.80204555]
[1680524905560,0.83780138,28137.0,28136.0,0.81054555]
[1680524905775,0.84780138,28137.0,28136.0,0.94724555]
[1680524906207,0.83780138,28137.0,28136.0,0.94724555]
[1680524906418,0.83762138,28137.0,28136.0,0.94742555]
[1680524907497,0.82762138,28137.0,28136.0,0.94542555]
[1680524907716,0.83662138,28137.0,28136.0,0.81272555]
[1680524907982,0.82762138,28137.0,28136.0,0.81072555]
[1680524908206,0.82762138,28137.0,28136.0,0.79495555]
[1680524908207,0.83662138,28137.0,28136.0,0.79495555]
[1680524908762,0.84969038,28137.0,28136.0,0.79295555]
[1680524908962,0.85869038,28137.0,28136.0,0.79495555]
[1680524909193,0.84969038,28137.0,28136.0,0.79295555]
[1680524909442,0.83662138,28137.0,28136.0,0.79495555]
[1680524909720,0.87333338,28137.0,28136.0,0.00218]
[1680524909936,0.85734038,28137.0,28136.0,0.002]
[1680524910363,0.84834038,28137.0,28132.0,0.00018]
[1680524910567,0.02194,28136.0,28133.0,0.37118102]
[1680524910777,0.02194,28136.0,28133.0,0.37136102]
[1680524911553,0.022339,28135.0,28134.0,0.00173512]
[1680524911792,0.022339,28135.0,28134.0,0.3943997]
[1680524911991,0.022339,28135.0,28134.0,0.03942473]
[1680524912322,0.022339,28135.0,28134.0,0.35671009]
[1680524912552,0.020555,28136.0,28134.0,0.35689009]
[1680524913451,0.020555,28136.0,28134.0,0.39308712]
[1680524913668,0.029555,28136.0,28134.0,0.37731512]
[1680524913898,0.009,28136.0,28134.0,0.39508612]
[1680524914121,0.009,28136.0,28135.0,0.42302922]
[1680524914342,0.009,28136.0,28135.0,0.44080022]
[1680524914565,0.82780138,28137.0,28135.0,0.44080022]
[1680524914783,0.009,28136.0,28135.0,0.44080022]
[1680524915002,0.82780138,28137.0,28135.0,0.44080022]
[1680524915226,0.82780138,28137.0,28136.0,0.77602729]
[1680524915446,0.82780138,28137.0,28136.0,0.80229729]
[1680524915888,0.82762138,28137.0,28136.0,0.80247729]
[1680524916325,0.83562138,28137.0,28136.0,0.80447729]
[1680524916548,0.83562138,28137.0,28136.0,0.80247729]
[1680524916549,0.82762138,28137.0,28136.0,0.80247729]
[1680524916769,0.83562138,28137.0,28136.0,0.80447729]
[1680524918808,0.82762138,28137.0,28136.0,0.80247729]
[1680524919300,0.83562138,28137.0,28136.0,0.80447729]
[1680524919759,0.008,28137.0,28136.0,0.88867729]
[1680524921497,0.008,28137.0,28136.0,0.92533529]
[1680524921953,0.008,28137.0,28136.0,0.80447729]
[1680524926627,0.008,28137.0,28136.0,0.80415708]
[1680524927971,0.008,28137.0,28136.0,0.84028008]
[1680524928623,0.008,28137.0,28136.0,0.80590213]
[1680524932092,0.008,28137.0,28136.0,0.77963213]
[1680524932768,0.008,28137.0,28136.0,0.79740213]
[1680524933651,0.008,28137.0,28136.0,0.77963213]
[1680524933867,0.008,28137.0,28136.0,0.79740213]
[1680524934318,0.87280038,28137.0,28136.0,0.00374505]
[1680524934538,0.95700038,28137.0,28136.0,0.00374505]
[1680524934764,1.40500038,28137.0,28136.0,0.00174505]
[1680524934993,1.43200038,28137.0,28136.0,0.00174505]
[1680524935253,1.40500038,28137.0,28136.0,0.00174505]
[1680524935488,1.33198738,28137.0,28129.0,0.408949]
[1680524935715,1.33198738,28137.0,28131.0,0.017773]
[1680524935716,0.48318,28137.0,28131.0,0.017773]
[1680524935947,0.48318,28137.0,28132.0,0.35497497]
[1680524935948,0.82762138,28133.0,28132.0,0.35497497]
[1680524936178,0.82780138,28133.0,28132.0,0.74614797]
[1680524936625,0.82780138,28133.0,28132.0,0.73012287]
[1680524937094,0.85480138,28133.0,28132.0,0.73012287]
[1680524937325,0.82780138,28133.0,28132.0,0.81257475]
[1680524937552,0.85480138,28133.0,28132.0,0.81257475]
[1680524938031,0.85180138,28133.0,28132.0,0.81257475]
[1680524938490,0.82780138,28133.0,28132.0,0.81257475]
[1680524939422,0.82780138,28133.0,28132.0,0.82107475]
[1680524939875,0.85180138,28133.0,28132.0,0.82107475]
[1680524940530,0.82780138,28133.0,28132.0,0.82107475]
[1680524940740,0.85480138,28133.0,28132.0,0.82107475]
[1680524942052,0.82780138,28133.0,28132.0,0.82107475]
[1680524942287,0.85480138,28133.0,28132.0,0.81257475]
[1680524944288,0.85480138,28133.0,28132.0,0.43917475]
[1680524944539,0.85480138,28133.0,28132.0,0.35672287]
[1680524944763,0.87460138,28133.0,28132.0,0.35672287]
[1680524944982,0.87460138,28133.0,28132.0,0.0017479]
[1680524945206,0.87442138,28133.0,28132.0,0.0017479]
[1680524945436,0.87442138,28133.0,28132.0,0.0017479]
[1680524945653,0.87442138,28133.0,28128.0,0.37358]
[1680524945879,0.020609,28132.0,28129.0,0.42411057]
[1680524946114,0.100374,28135.0,28129.0,0.42411057]
[1680524946345,0.82762138,28130.0,28129.0,0.56608544]
[1680524946565,0.82762138,28130.0,28129.0,0.35690501]
[1680524947963,0.82762138,28130.0,28129.0,0.00193004]
[1680524948191,0.86539238,28130.0,28129.0,0.00175004]
[1680524948668,0.86539238,28130.0,28124.0,0.017958]
[1680524948888,0.82762138,28130.0,28125.0,0.38778152]
[1680524949110,0.85462138,28130.0,28126.0,0.3]
[1680524949308,0.02084,28129.0,28126.0,0.35515497]
[1680524949565,0.02084,28129.0,28126.0,0.00018]
[1680524949784,0.02084,28129.0,28125.0,0.03455945]
[1680524950012,0.82762138,28130.0,28126.0,0.03525175]
[1680524950230,0.021701,28129.0,28126.0,0.03525175]
[1680524950460,0.82762138,28127.0,28126.0,0.03525175]
[1680524950679,0.86453538,28127.0,28123.0,0.00018]
[1680524950899,0.86453538,28127.0,28123.0,0.35497497]
[1680524950900,0.82762138,28124.0,28123.0,0.35497497]
[1680524951125,0.84885938,28124.0,28123.0,0.0356775]
[1680524951336,0.84885938,28124.0,28119.0,0.430562]
[1680524951337,0.84885938,28124.0,28121.0,0.00018]
[1680524951555,0.020713,28123.0,28121.0,0.35515497]
[1680524951769,0.85462138,28124.0,28121.0,0.00018]
[1680524951990,0.020733,28123.0,28120.0,0.01778]
[1680524952215,0.82762138,28124.0,28120.0,0.37275497]
[1680524952447,0.85462138,28124.0,28121.0,0.39442847]
[1680524952691,0.85462138,28124.0,28121.0,0.41238747]
[1680524952905,0.82762138,28124.0,28121.0,0.41238747]
[1680524953574,0.82762138,28124.0,28121.0,0.78578747]
[1680524953796,0.82762138,28124.0,28121.0,0.00018]
[1680524954020,0.82762138,28124.0,28119.0,0.02178]
[1680524954021,0.82762138,28120.0,28119.0,0.02178]
[1680524954238,0.84825838,28120.0,28119.0,0.37657497]
[1680524954530,0.84825838,28120.0,28119.0,0.41619067]
[1680524954969,0.87525838,28120.0,28119.0,1.07336089]
[1680524955188,0.82762138,28120.0,28119.0,1.09964189]
[1680524955407,0.85462138,28120.0,28119.0,0.41619067]
[1680524955626,0.87552138,28120.0,28119.0,0.41619067]
[1680524955841,0.82762138,28120.0,28119.0,0.41619067]
[1680524956056,0.85462138,28120.0,28119.0,0.41619067]
[1680524956701,0.85462138,28120.0,28119.0,0.78959067]
[1680524956900,0.85462138,28120.0,28119.0,0.80737167]
[1680524957154,0.85462138,28120.0,28119.0,0.02178]
[1680524957375,0.84840638,28120.0,28119.0,0.0216]
[1680524957596,0.87540638,28120.0,28119.0,0.0216]
[1680524957816,0.93190638,28120.0,28119.0,0.0216]
[1680524958035,0.95960638,28120.0,28119.0,0.0216]
[1680524958265,0.93260638,28120.0,28119.0,0.0216]
[1680524958495,0.87540638,28120.0,28119.0,0.37657497]
[1680524958718,0.84840638,28120.0,28119.0,0.41443047]
[1680524958939,0.87540638,28120.0,28119.0,0.41443047]
[1680524959368,0.87540638,28120.0,28119.0,0.02178]
[1680524959589,0.87540638,28120.0,28119.0,0.0216]
[1680524959779,0.84840638,28120.0,28119.0,0.0216]
[1680524960039,1.05940838,28120.0,28119.0,0.0216]
[1680524960274,0.93240638,28120.0,28119.0,0.0216]
[1680524960500,0.87558638,28120.0,28119.0,0.0216]
[1680524960728,0.87558638,28120.0,28119.0,0.0255382]
[1680524960729,0.84858638,28120.0,28119.0,0.0255382]
[1680524960974,0.87540638,28120.0,28119.0,0.0255382]
[1680524961193,0.93190638,28120.0,28119.0,0.0216]
[1680524961635,0.95890638,28120.0,28119.0,0.0216]
[1680524961846,0.93190638,28120.0,28119.0,0.0216]
[1680524962490,0.93208638,28120.0,28119.0,0.0216]
[1680524962709,0.95908638,28120.0,28119.0,0.0216]
[1680524962933,0.93208638,28120.0,28119.0,0.0216]
[1680524963122,0.95908638,28120.0,28119.0,0.0216]
[1680524963804,0.95890638,28120.0,28119.0,0.02336724]
[1680524964463,0.93190638,28120.0,28119.0,0.02336724]
[1680524964655,0.93190638,28120.0,28119.0,0.0216]
[1680524964656,0.97490838,28120.0,28119.0,0.0216]
[1680524964940,0.95890638,28120.0,28119.0,0.0216]
[1680524965165,1.0615854,28120.0,28119.0,0.0216]
[1680524965357,0.87558638,28120.0,28119.0,0.0216]
[1680524965610,0.84858638,28120.0,28119.0,0.0216]